fUST/lending_fUST_20251021
["ID","MTS","AMOUNT","RATE_DAILY","PERIOD"]
[391925552,1760997043801,-1520.68978413,0.00028616,5]
[391925553,1760997043811,-2000.0,0.00028616,5]
[391925554,1760997043820,-2000.0,0.00028616,5]
[391925555,1760997043829,-516.90986039,0.00028618,2]
[391925556,1760997043839,-380.0,0.00028649,7]
[391925557,1760997043848,-380.0,0.00028677,2]
[391925558,1760997043857,-352.34317065,0.00028712,2]
[391925559,1760997043867,-660.0,0.00028754,2]
[391925560,1760997043876,-989.12601571,0.0002876,2]
[391925561,1760997043885,-4000.0,0.0002876,5]
[391925562,1760997043894,-250.31971598,0.0002876,2]
[391925563,1760997043903,-2318.4149331,0.0002876,2]
[391925564,1760997043912,-1825.0,0.0002879,2]
[391925565,1760997043921,-1825.0,0.00028795,7]
[391925566,1760997043930,-500.0,0.00028798,15]
[391925567,1760997043939,-169.83253239,0.000288,7]
[391925568,1760997043948,-587.0,0.00028803,2]
[391925569,1760997043958,-179.67658215,0.00028949,2]
[391925570,1760997043967,-881.98862225,0.00029,2]
[391925571,1760997043976,-1169.01441972,0.00029,2]
[391925572,1760997043985,-502.44369659,0.00029,7]
[391925573,1760997043995,-3000.0,0.00029,4]
[391925574,1760997044006,-160.0,0.00029,30]
[391925575,1760997044015,-1059.32,0.00029,2]
[391925576,1760997044025,-250.0,0.00029021,5]
[391925577,1760997044034,-300.0,0.00029021,5]
[391925578,1760997044046,-250.0,0.00029021,5]
[391925579,1760997044055,-608.36009697,0.00029046,2]
[391925580,1760997044065,-2672.821039,0.00029049,2]
[391925581,1760997044076,-336.625724,0.00029049,2]
[391925582,1760997044085,-229.459681,0.00029049,2]
[391925583,1760997044095,-1500.0,0.00029064,5]
[391925584,1760997044107,-2500.0,0.00029064,5]
[391925585,1760997044117,-2027.64625486,0.00029064,5]
[391925586,1760997044127,-500.0,0.00029072,15]
[391925587,1760997044137,-472.51358576,0.00029094,2]
[391925588,1760997044147,-381.0,0.00029126,2]
[391925589,1760997044156,-380.0,0.00029135,2]
[391925590,1760997044166,-155.0,0.00029159,2]
[391925591,1760997044175,-2515.50384054,0.00029164,5]
[391925592,1760997044184,-2500.0,0.00029164,5]
[391925593,1760997044193,-1059.32,0.00029174,2]
[391925594,1760997044203,-517.44656355,0.00029199,2]
[391925595,1760997044212,-14265.92,0.000292,7]
[391925596,1760997044222,-506.96,0.00029295,2]
[391925597,1760997044231,-760.0,0.00029302,2]
[391925598,1760997044240,-6495.08139675,0.00029323,2]
[391925599,1760997044250,-500.0,0.00029346,15]
[391925600,1760997044259,-1059.32,0.00029348,2]
[391925601,1760997044268,-4394.93786686,0.00029468,2]
[391925602,1760997044277,-632.0,0.00029527,2]
[391925603,1760997044287,-982.0,0.00029527,2]
[391925604,1760997044296,-2163.0,0.00029527,2]
[391925605,1760997044305,-150.0,0.00029527,2]
[391925606,1760997044315,-59707.26555647,0.0002956,2]
[391925607,1760997044324,-350.0,0.00029568,5]
[391925608,1760997044333,-450.0,0.00029568,5]
[391925609,1760997044342,-389.82742202,0.00029568,5]
[391925610,1760997044352,-500.0,0.00029573,5]
[391925611,1760997044361,-205.766924,0.000296,2]
[391925612,1760997044370,-3000.0,0.00029612,5]
[391925613,1760997044379,-150.0,0.00029614,30]
[391925614,1760997044388,-500.0,0.0002962,15]
[391925615,1760997044398,-281.0,0.000297,2]
[391925616,1760997044406,-3000.0,0.00029712,5]
[391925617,1760997044416,-552.72701106,0.00029799,2]
[391925618,1760997044425,-860.0,0.0002985,2]
[391925619,1760997044434,-500.0,0.00029894,15]
[391925620,1760997044443,-3112.86,0.000299,2]
[391925621,1760997044453,-1292.77429664,0.0003,2]
[391925622,1760997044463,-7293.09724818,0.0003,2]
[391925623,1760997044472,-3425.67918834,0.0003,2]
[391925624,1760997044481,-1189.0,0.0003,45]
[391925625,1760997044491,-785.81490251,0.0003,60]
[391925626,1760997044501,-294.23482915,0.0003,60]
[391925627,1760997044510,-200.31104838,0.0003,2]
[391925628,1760997044520,-8051.06919745,0.0003,2]
[391925629,1760997044530,-5933.77400514,0.0003,2]
[391925630,1760997044542,-27601.60965041,0.0003,3]
[391925631,1760997044553,-1000.0,0.0003,60]
[391925632,1760997044564,-154.208,0.0003,2]
[391925633,1760997044576,-450.0,0.00030116,5]
[391925634,1760997044586,-600.0,0.00030116,5]
[391925635,1760997044596,-381.86975226,0.0003012,7]
[391925636,1760997044606,-720.0,0.00030123,30]
[391925637,1760997044616,-285.59600149,0.0003013,2]
[391925638,1760997044626,-208.66,0.00030136,2]
[391925639,1760997044635,-10000.0,0.00030137,2]
[391925640,1760997044645,-10000.0,0.00030137,2]
[391925641,1760997044656,-10000.0,0.00030137,2]
[391925642,1760997044665,-10000.0,0.00030137,2]
[391925643,1760997044674,-10000.0,0.00030137,2]
[391925644,1760997044684,-909.0,0.00030137,2]
[391925645,1760997044693,-151.0,0.00030137,30]
[391925646,1760997044704,-151.0,0.00030137,30]
[391925647,1760997044713,-151.0,0.00030137,30]
[391925648,1760997044723,-195.017758,0.00030137,30]
[391925649,1760997044732,-195.017758,0.00030137,30]
[391925650,1760997044742,-195.017758,0.00030137,30]
[391925651,1760997044751,-195.017758,0.00030137,30]
[391925652,1760997044761,-151.0,0.00030137,30]
[391925653,1760997044770,-151.0,0.00030137,30]
[391925654,1760997044779,-151.0,0.00030137,30]
[391925655,1760997044788,-151.0,0.00030137,30]
[391925656,1760997044798,-151.0,0.00030137,30]
[391925657,1760997044807,-151.0,0.00030137,30]
[391925658,1760997044816,-151.0,0.00030137,30]
[391925659,1760997044825,-151.0,0.00030137,30]
[391925660,1760997044835,-151.0,0.00030137,30]
[391925661,1760997044844,-1037.963748,0.00030137,30]
[391925662,1760997044854,-1037.963748,0.00030137,30]
[391925663,1760997044863,-1037.963748,0.00030137,30]
[391925664,1760997044872,-1037.963748,0.00030137,30]
[391925665,1760997044881,-154.08754,0.00030137,30]
[391925666,1760997044891,-154.08754,0.00030137,30]
[391925667,1760997044900,-154.08754,0.00030137,30]
[391925668,1760997044909,-154.08754,0.00030137,30]
[391925669,1760997044919,-151.0,0.00030137,30]
[391925670,1760997044928,-244.405244,0.00030137,30]
[391925671,1760997044937,-233.656997,0.00030137,30]
[391925672,1760997044946,-233.656997,0.00030137,30]
[391925673,1760997044955,-233.656997,0.00030137,30]
[391925674,1760997044965,-233.656997,0.00030137,30]
[391925675,1760997044974,-3500.0,0.0003016,5]
[391925676,1760997044983,-500.0,0.00030168,15]
[391925677,1760997044991,-185.32,0.0003023,2]
[391925678,1760997045001,-151.0,0.0003026,30]
[391925679,1760997045010,-151.0,0.0003026,30]
[391925680,1760997045019,-169.790875,0.0003026,30]
[391925681,1760997045028,-964.968896,0.0003026,30]
[391925682,1760997045037,-964.968896,0.0003026,30]
[391925683,1760997045046,-964.968896,0.0003026,30]
[391925684,1760997045055,-964.968896,0.0003026,30]
[391925685,1760997045064,-151.0,0.0003026,30]
[391925686,1760997045073,-151.0,0.0003026,30]
[391925687,1760997045083,-151.0,0.0003026,30]
[391925688,1760997045092,-158.998876,0.0003026,30]
[391925689,1760997045101,-158.998876,0.0003026,30]
[391925690,1760997045110,-158.998876,0.0003026,30]
[391925691,1760997045119,-158.998876,0.0003026,30]
[391925692,1760997045129,-627.756314,0.0003026,30]
[391925693,1760997045138,-627.756314,0.0003026,30]
[391925694,1760997045147,-627.756314,0.0003026,30]
[391925695,1760997045156,-627.756314,0.0003026,30]
[391925696,1760997045166,-3500.0,0.0003026,5]
[391925697,1760997045178,-14265.92,0.000303,7]
[391925698,1760997045188,-26945.5616851,0.00030322,2]
[391925699,1760997045198,-1000.0,0.00030348,4]
[391925700,1760997045208,-150.0,0.00030361,2]
[391925701,1760997045218,-150.0,0.00030361,2]
[391925702,1760997045228,-150.0,0.00030361,2]
[391925703,1760997045238,-150.0,0.00030361,2]
[391925704,1760997045247,-516.90986039,0.00030374,2]
[391925705,1760997045256,-960.0,0.00030398,2]
[391925706,1760997045266,-588.00745858,0.00030399,2]
[391925707,1760997045276,-2692.461002,0.000304,4]
[391925708,1760997045286,-6762.2500899,0.00030404,2]
[391925709,1760997045295,-500.0,0.00030442,15]
[391925710,1760997045305,-550.0,0.00030664,5]
[391925711,1760997045314,-533.61310881,0.00030664,5]
[391925712,1760997045324,-4000.0,0.00030708,5]
[391925713,1760997045333,-500.0,0.00030716,15]
[391925714,1760997045343,-880.9823449,0.0003079,30]
[391925715,1760997045353,-4000.0,0.00030808,5]
[391925716,1760997045362,-3112.86,0.000309,2]
[391925717,1760997045372,-1060.0,0.00030946,2]
[391925718,1760997045382,-543.5,0.0003099,15]
[391925719,1760997045392,-303.60548378,0.0003099,2]
[391925720,1760997045402,-152.37,0.00030991,15]
[391925721,1760997045411,-623.28790609,0.00030999,2]
[391925722,1760997045421,-160.81536639,0.00031,120]
[391925723,1760997045431,-733.74718898,0.00031,120]
[391925724,1760997045441,-441.99622779,0.00031,120]
[391925725,1760997045450,-354.63186102,0.00031,120]
[391925726,1760997045461,-162.12250441,0.00031,120]
[391925727,1760997045471,-204.00726077,0.00031,120]
[391925728,1760997045480,-2183.06322806,0.00031,120]
[391925729,1760997045490,-206.25203997,0.00031,120]
[391925730,1760997045499,-384.60489541,0.00031,120]
[391925731,1760997045509,-171.9882755,0.00031,120]
[391925732,1760997045519,-248.87192632,0.00031,120]
[391925733,1760997045529,-153.12,0.0003105,15]
[391925734,1760997045538,-6495.08139675,0.00031056,2]
[391925735,1760997045548,-152.37,0.00031091,15]
[391925736,1760997045557,-157.224767,0.00031098,2]
[391925737,1760997045568,-336.625724,0.00031098,2]
[391925738,1760997045580,-229.459681,0.00031098,2]
[391925739,1760997045590,-152.35,0.00031103,15]
[391925740,1760997045600,-153.12,0.0003115,15]
[391925741,1760997045609,-152.37,0.00031191,15]
[391925742,1760997045618,-152.35,0.00031203,15]
[391925743,1760997045628,-557.02076465,0.00031212,5]
[391925744,1760997045638,-823.0,0.00031218,2]
[391925745,1760997045647,-608.36,0.00031248,2]
[391925746,1760997045657,-153.14,0.0003125,15]
[391925747,1760997045667,-2500.0,0.00031256,5]
[391925748,1760997045676,-152.37,0.00031291,15]
[391925749,1760997045685,-152.35,0.00031303,15]
[391925750,1760997045695,-4500.0,0.00031356,5]
[391925751,1760997045704,-5000.0,0.0003138,30]
[391925752,1760997045714,-4559.13,0.0003138,30]
[391925753,1760997045723,-152.37,0.00031391,15]
[391925755,1760997045733,-152.35,0.00031403,15]
[391925757,1760997045743,-152.37,0.00031491,15]
[391925758,1760997045752,-1160.0,0.00031494,2]
[391925759,1760997045761,-14265.92,0.000315,7]
[391925760,1760997045771,-152.4,0.00031503,15]
[391925761,1760997045780,-152.37,0.00031591,15]
[391925762,1760997045789,-658.56835361,0.00031599,2]
[391925763,1760997045798,-152.37,0.00031691,15]
[391925764,1760997045807,-152.37,0.00031791,15]
[391925765,1760997045817,-1800.0,0.00031818,7]
[391925766,1760997045826,-173.82,0.00031853,30]
[391925767,1760997045835,-156.0,0.00031863,49]
[391925768,1760997045845,-152.37,0.00031891,15]
[391925769,1760997045855,-733.74718898,0.000319,120]
[391925770,1760997045864,-441.99622779,0.000319,120]
[391925771,1760997045874,-354.63186102,0.000319,120]
[391925772,1760997045883,-162.12250441,0.000319,120]
[391925773,1760997045892,-2183.06322806,0.000319,120]
[391925774,1760997045902,-171.9882755,0.000319,120]
[391925775,1760997045912,-53902.0,0.000319,60]
[391925776,1760997045922,-157.224767,0.000319,60]
[391925777,1760997045931,-336.625724,0.000319,60]
[391925778,1760997045941,-229.459681,0.000319,60]
[391925779,1760997045951,-1975.411402,0.000319,12]
[391925780,1760997045959,-5000.0,0.00031904,5]
[391925781,1760997045968,-152.37,0.00031991,15]
[391925782,1760997045977,-3112.86,0.00032,2]
[391925783,1760997045985,-7844.08763176,0.00032,30]
[391925786,1760997045994,-1034.74229966,0.00032,10]
[391925789,1760997046004,-1260.0,0.00032042,2]
[391925791,1760997046013,-152.37,0.00032091,15]
[391925793,1760997046023,-516.90986039,0.00032131,2]
[391925794,1760997046032,-152.37,0.00032191,15]
[391925795,1760997046043,-693.84880112,0.00032199,2]
[391925796,1760997046054,-158.02367956,0.00032219,30]
[391925798,1760997046064,-152.37,0.00032291,15]
[391925800,1760997046074,-152.37,0.00032391,15]
[391925802,1760997046083,-1000.0,0.000324,12]
[391925804,1760997046093,-157.224767,0.00032412,60]
[391925805,1760997046103,-336.625724,0.00032412,60]
[391925806,1760997046112,-229.459681,0.00032412,60]
[391925807,1760997046122,-5500.0,0.00032452,5]
[391925808,1760997046131,-158.02367956,0.00032466,30]
[391925809,1760997046140,-152.37,0.00032491,15]
[391925810,1760997046149,-632.0,0.00032527,2]
[391925811,1760997046159,-982.0,0.00032527,2]
[391925812,1760997046168,-2163.0,0.00032527,2]
[391925813,1760997046178,-160.0,0.00032569,3]
[391925814,1760997046187,-816.7724683,0.00032573,2]
[391925815,1760997046197,-1360.0,0.0003259,2]
[391925816,1760997046206,-152.37,0.00032591,15]
[391925817,1760997046215,-14265.92,0.000326,7]
[391925818,1760997046224,-600.0,0.00032633,2]
[391925819,1760997046234,-1800.0,0.0003264,7]
[391925820,1760997046243,-2238.8456239,0.00032689,2]
[391925821,1760997046252,-152.37,0.00032691,15]
[391925822,1760997046262,-9206.28,0.000327,8]
[391925823,1760997046271,-158.02367956,0.00032712,30]
[391925824,1760997046280,-6495.08139675,0.00032789,2]
[391925825,1760997046289,-152.37,0.00032791,15]
[391925826,1760997046299,-729.12924864,0.00032799,2]
[391925827,1760997046308,-200.0,0.00032809,120]
[391925828,1760997046318,-2999.0,0.00032876,120]
[391925829,1760997046328,-151.0,0.00032877,30]
[391925830,1760997046338,-151.0,0.00032877,30]
[391925831,1760997046347,-151.0,0.00032877,30]
[391925832,1760997046356,-151.0,0.00032877,30]
[391925833,1760997046366,-151.0,0.00032877,30]
[391925834,1760997046375,-151.0,0.00032877,30]
[391925835,1760997046384,-151.0,0.00032877,30]
[391925836,1760997046394,-151.0,0.00032877,30]
[391925837,1760997046403,-151.0,0.00032877,30]
[391925838,1760997046412,-151.0,0.00032877,30]
[391925839,1760997046421,-189.257916,0.00032877,30]
[391925840,1760997046431,-151.0,0.00032877,30]
[391925841,1760997046440,-151.486568,0.00032877,30]
[391925842,1760997046449,-152.37,0.00032891,60]
[391925843,1760997046459,-733.74718898,0.000329,120]
[391925844,1760997046468,-441.99622779,0.000329,120]
[391925845,1760997046477,-354.63186102,0.000329,120]
[391925846,1760997046486,-180.0,0.000329,2]
[391925847,1760997046496,-162.12250441,0.000329,120]
[391925848,1760997046505,-2183.06322806,0.000329,120]
[391925849,1760997046514,-171.9882755,0.000329,120]
[391925850,1760997046523,-60921.42086179,0.000329,10]
[391925851,1760997046533,-1000.0,0.000329,12]
[391925852,1760997046542,-336.625724,0.00032925,60]
[391925853,1760997046551,-229.459681,0.00032925,60]
[391925854,1760997046561,-158.02367956,0.00032959,30]
[391925855,1760997046571,-600.0,0.00032973,2]
[391925856,1760997046582,-152.37,0.00032991,60]
[391925857,1760997046592,-1000.0,0.00032999,7]
[391925858,1760997046602,-239.0,0.00033,2]
[391925859,1760997046611,-3000.0,0.00033,10]
[391925860,1760997046621,-21593.72964216,0.00033,5]
[391925861,1760997046629,-5134.79067487,0.00033,5]
[391925862,1760997046638,-5000.0,0.00033054,3]
[391925863,1760997046648,-151.0,0.00033091,30]
[391925864,1760997046657,-151.0,0.00033091,30]
[391925865,1760997046666,-166.222641,0.00033091,30]
[391925866,1760997046676,-195.017758,0.00033091,30]
[391925867,1760997046685,-195.017758,0.00033091,30]
[391925868,1760997046694,-195.017758,0.00033091,30]
[391925869,1760997046703,-195.017758,0.00033091,30]
[391925870,1760997046712,-151.0,0.00033091,30]
[391925871,1760997046722,-151.0,0.00033091,30]
[391925872,1760997046731,-151.0,0.00033091,30]
[391925873,1760997046740,-151.0,0.00033091,30]
[391925874,1760997046749,-151.0,0.00033091,30]
[391925875,1760997046759,-151.0,0.00033091,30]
[391925876,1760997046768,-152.37,0.00033091,60]
[391925877,1760997046777,-3112.86,0.000331,14]
[391925878,1760997046786,-864.0,0.00033136,30]
[391925879,1760997046795,-1460.0,0.00033138,2]
[391925880,1760997046805,-157.224767,0.00033147,2]
[391925881,1760997046814,-336.625724,0.00033147,2]
[391925882,1760997046992,-229.459681,0.00033147,2]
[391925883,1760997047002,-4204.0,0.00033158,2]
[391925884,1760997047012,-739.699277,0.00033165,2]
[391925885,1760997047022,-500.0,0.00033175,30]
[391925886,1760997047031,-507.89456886,0.00033175,30]
[391925887,1760997047040,-158.02367956,0.00033178,30]
[391925888,1760997047050,-152.42,0.00033191,60]
[391925889,1760997047059,-177.24960773,0.000332,117]
[391925890,1760997047068,-709.75,0.00033201,2]
[391925891,1760997047077,-154.208,0.00033219,2]
[391925892,1760997047086,-600.0,0.00033313,2]
[391925893,1760997047095,-150.0,0.00033361,2]
[391925894,1760997047104,-150.0,0.00033361,2]
[391925895,1760997047113,-150.0,0.00033361,2]
[391925896,1760997047122,-150.0,0.00033361,2]
[391925897,1760997047132,-18412.56,0.00033389,10]
[391925898,1760997047141,-151.0,0.00033399,30]
[391925899,1760997047150,-233.656997,0.00033399,30]
[391925900,1760997047159,-233.656997,0.00033399,30]
[391925901,1760997047168,-233.656997,0.00033399,30]
[391925902,1760997047177,-764.40969615,0.00033399,2]
[391925903,1760997047186,-233.656997,0.00033399,30]
[391925904,1760997047196,-1000.0,0.000334,12]
[391925905,1760997047205,-503.22156837,0.00033408,7]
[391925906,1760997047216,-158.02367956,0.00033425,30]
[391925907,1760997047225,-500.0,0.00033425,7]
[391925908,1760997047235,-336.625724,0.00033438,60]
[391925909,1760997047245,-229.459681,0.00033438,60]
[391925910,1760997047254,-1009.085312,0.0003346,8]
[391925911,1760997047263,-1800.0,0.00033462,7]
[391925912,1760997047273,-1000.0,0.0003348,8]
[391925913,1760997047282,-8756.2600923,0.00033489,14]
[391925914,1760997047292,-5000.00000573,0.000335,35]
[391925915,1760997047302,-1066.16138416,0.000335,120]
[391925916,1760997047311,-1000.0,0.000335,8]
[391925917,1760997047321,-151.0,0.000335,30]
[391925918,1760997047331,-151.0,0.000335,30]
[391925919,1760997047341,-175.933912,0.000335,30]
[391925920,1760997047350,-1000.0,0.0003352,8]
[391925921,1760997047360,-151.0,0.0003352,30]
[391925922,1760997047369,-151.0,0.0003352,30]
[391925923,1760997047378,-964.968896,0.0003352,30]
[391925924,1760997047387,-964.968896,0.0003352,30]
[391925925,1760997047397,-964.968896,0.0003352,30]
[391925926,1760997047407,-964.968896,0.0003352,30]
[391925927,1760997047416,-151.0,0.0003352,30]
[391925928,1760997047425,-151.0,0.0003352,30]
[391925929,1760997047435,-151.0,0.0003352,30]
[391925930,1760997047444,-158.998876,0.0003352,30]
[391925931,1760997047453,-158.998876,0.0003352,30]
[391925932,1760997047463,-158.998876,0.0003352,30]
[391925933,1760997047472,-158.998876,0.0003352,30]
[391925934,1760997047481,-627.756314,0.0003352,30]
[391925935,1760997047490,-627.756314,0.0003352,30]
[391925936,1760997047499,-627.756314,0.0003352,30]
[391925937,1760997047508,-627.756314,0.0003352,30]
[391925938,1760997047517,-1000.0,0.0003354,8]
[391925939,1760997047526,-1000.0,0.0003356,8]
[391925940,1760997047536,-2999.0,0.00033561,120]
[391925941,1760997047545,-1000.0,0.0003358,8]
[391925942,1760997047554,-25000.0,0.000336,3]
[391925943,1760997047563,-150.0,0.000336,46]
[391925944,1760997047575,-1000.0,0.000336,8]
[391925945,1760997047585,-150.442674,0.000336,2]
[391925946,1760997047594,-1037.963748,0.000336,30]
[391925947,1760997047603,-1037.963748,0.000336,30]
[391925948,1760997047612,-1037.963748,0.000336,30]
[391925949,1760997047621,-1037.963748,0.000336,30]
[391925950,1760997047630,-154.08754,0.000336,30]
[391925951,1760997047640,-154.08754,0.000336,30]
[391925952,1760997047649,-154.08754,0.000336,30]
[391925953,1760997047658,-154.08754,0.000336,30]
[391925954,1760997047667,-1000.0,0.0003362,8]
[391925955,1760997047676,-151.0,0.00033638,30]
[391925956,1760997047685,-151.0,0.00033638,30]
[391925957,1760997047695,-151.0,0.00033638,30]
[391925958,1760997047705,-1000.0,0.0003364,8]
[391925959,1760997047715,-151.0,0.00033648,30]
[391925960,1760997047724,-151.0,0.00033648,30]
[391925961,1760997047734,-151.0,0.00033648,30]
[391925962,1760997047743,-26945.5616851,0.00033651,2]
[391925963,1760997047752,-600.0,0.00033653,2]
[391925964,1760997047761,-4542.0,0.00033659,30]
[391925965,1760997047772,-1000.0,0.0003366,8]
[391925966,1760997047783,-151.0,0.00033664,30]
[391925967,1760997047793,-151.0,0.00033664,30]
[391925968,1760997047802,-195.017758,0.00033664,30]
[391925969,1760997047811,-195.017758,0.00033664,30]
[391925970,1760997047820,-195.017758,0.00033664,30]
[391925971,1760997047829,-195.017748,0.00033664,30]
[391925972,1760997047838,-151.0,0.00033664,30]
[391925973,1760997047847,-151.0,0.00033664,30]
[391925974,1760997047856,-151.0,0.00033664,30]
[391925975,1760997047865,-151.0,0.00033664,30]
[391925976,1760997047874,-151.0,0.00033664,30]
[391925977,1760997047884,-151.0,0.00033664,30]
[391925978,1760997047893,-158.02367956,0.00033671,30]
[391925979,1760997047902,-1000.0,0.0003368,8]
[391925980,1760997047910,-1168.180886,0.0003368,8]
[391925981,1760997047919,-1560.0,0.00033686,2]
[391925982,1760997047928,-151.0,0.00033689,30]
[391925983,1760997047937,-151.0,0.00033689,30]
[391925984,1760997047946,-151.0,0.00033689,30]
[391925985,1760997047955,-151.0,0.00033689,30]
[391925986,1760997047964,-964.968896,0.00033689,30]
[391925987,1760997047973,-964.968896,0.00033689,30]
[391925988,1760997047983,-964.968896,0.00033689,30]
[391925989,1760997047991,-964.968893,0.00033689,30]
[391925990,1760997048001,-151.0,0.00033689,30]
[391925991,1760997048009,-151.0,0.00033689,30]
[391925992,1760997048018,-151.0,0.00033689,30]
[391925993,1760997048027,-1500.0,0.00033689,28]
[391925994,1760997048036,-1500.0,0.00033689,28]
[391925995,1760997048046,-1500.0,0.00033689,28]
[391925996,1760997048055,-1500.0,0.00033689,28]
[391925997,1760997048066,-1500.0,0.00033689,28]
[391925998,1760997048077,-1500.0,0.00033689,28]
[391925999,1760997048087,-1500.0,0.00033689,28]
[391926000,1760997048096,-1500.0,0.00033689,28]
[391926001,1760997048106,-1500.0,0.00033689,28]
[391926002,1760997048116,-1500.0,0.00033689,28]
[391926003,1760997048126,-1500.0,0.00033689,28]
[391926004,1760997048135,-1500.0,0.00033689,28]
[391926005,1760997048145,-1500.0,0.00033689,28]
[391926006,1760997048154,-851.755767,0.00033689,28]
[391926007,1760997048163,-158.998876,0.00033689,30]
[391926008,1760997048173,-158.998876,0.00033689,30]
[391926009,1760997048182,-158.998876,0.00033689,30]
[391926010,1760997048191,-158.998869,0.00033689,30]
[391926011,1760997048201,-627.756314,0.00033689,30]
[391926012,1760997048210,-627.756314,0.00033689,30]
[391926013,1760997048219,-627.756314,0.00033689,30]
[391926014,1760997048228,-627.756317,0.00033689,30]
[391926015,1760997048238,-1037.963748,0.00033689,30]
[391926016,1760997048248,-1037.963748,0.00033689,30]
[391926017,1760997048257,-1037.963748,0.00033689,30]
[391926018,1760997048266,-1037.96373858,0.00033689,30]
[391926019,1760997048276,-154.08754,0.00033689,30]
[391926020,1760997048285,-154.08754,0.00033689,30]
[391926021,1760997048293,-154.08754,0.00033689,30]
[391926022,1760997048302,-154.087531,0.00033689,30]
[391926023,1760997048311,-151.0,0.00033689,30]
[391926024,1760997048324,-233.656997,0.00033689,30]
[391926025,1760997048333,-233.656997,0.00033689,30]
[391926026,1760997048342,-233.656997,0.00033689,30]
[391926027,1760997048350,-233.657003,0.00033689,30]
[391926028,1760997048360,-941.25892401,0.00033689,5]
[391926029,1760997048369,-150.0,0.00033689,2]
[391926030,1760997048378,-305885.13026466,0.00033689,20]
[391926031,1760997048387,-2496.0955183,0.00033689,7]
[391926032,1760997048396,-635.03476002,0.00033689,2]
[391926033,1760997048405,-3565.75658497,0.00033689,26]
[391926034,1760997048414,-835.76800693,0.00033689,15]
[391926035,1760997048423,-278502.53160561,0.00033689,20]
[391926036,1760997048431,-310.16871715,0.00033689,2]
[391926037,1760997048443,-500.0,0.00033689,15]
[391926038,1760997048452,-262386.78498754,0.00033689,20]
[391926039,1760997048461,-5825.59954273,0.00033689,14]
[391926040,1760997048469,-522962.5714216,0.00033689,30]
[391926041,1760997048918,-810.69,0.0002598,3]
[391926042,1760997048928,-415.34327948,0.00033689,30]
[391926093,1760997156019,150.0,0.00021751,2]
[391926094,1760997156377,150.0,0.00023729,2]
[391926095,1760997235431,150.0,0.00021649,2]
[391926096,1760997235882,202.06,0.00023617,2]
[391926097,1760997283687,417.15472785,0.00024075,2]
[391926098,1760997316867,150.0,0.00021755,2]
[391926099,1760997317304,193.09,0.00023733,2]
[391926100,1760997400481,150.0,0.00021775,2]
[391926101,1760997400932,184.36,0.00023754,2]
[391926106,1760997480977,150.0,0.00021693,2]
[391926107,1760997481919,175.85,0.00023665,2]
[391926108,1760997496936,253.700626,0.00030137,120]
[391926109,1760997560937,150.0,0.00021599,2]
[391926110,1760997561349,167.56,0.00023563,2]
[391926111,1760997639707,150.0,0.00021557,2]
[391926112,1760997640160,159.47,0.00023517,2]
[391926113,1760997718353,150.0,0.00021611,2]
[391926114,1760997718784,151.6,0.00023576,2]
[391926115,1760997796633,150.0,0.00021576,2]
[391926116,1760997797041,150.0,0.00023537,2]
[391926117,1760997874627,150.0,0.00021553,2]